bitfinex/quotes_SOLUSD_20241013
["timestamp","ask_amount","ask_price","bid_price","bid_amount"]
[1728832678365,6.8696,145.57,145.51,2.0]
[1728832678549,6.8701,145.56,145.51,8.8723]
[1728832678750,16.4327,145.6,145.51,2.0]
[1728832678958,6.8705,145.55,145.51,2.0]
[1728832679269,33.6038,145.6,145.51,2.0]
[1728832679563,6.8711,145.54,145.51,2.0]
[1728832679865,33.6038,145.6,145.51,2.0]
[1728832680174,6.8699,145.57,145.51,8.8723]
[1728832680351,6.8699,145.57,145.52,6.8716]
[1728832680742,6.8691,145.58,145.53,6.8714]
[1728832681068,6.869,145.58,145.53,6.8714]
[1728832681448,16.4327,145.6,145.54,6.8709]
[1728832681449,6.869,145.59,145.54,6.8709]
[1728832681849,6.8692,145.58,145.52,6.8714]
[1728832682060,16.4327,145.6,145.51,19.1799]
[1728832682263,6.8701,145.56,145.51,26.0522]
[1728832683773,40.949184,145.59,145.51,2.0]
[1728832683950,6.8714,145.53,145.51,2.0]
[1728832685546,23.776884,145.59,145.51,2.0]
[1728832685868,6.8719,145.52,145.51,2.0]
[1728832688983,30.648784,145.52,145.51,2.0]
[1728832692481,6.8719,145.52,145.51,2.0]
[1728832694051,30.648784,145.52,145.51,2.0]
[1728832697075,6.8719,145.52,145.51,2.0]
[1728832698479,30.648784,145.52,145.51,2.0]
[1728832699558,6.8719,145.52,145.51,2.0]
[1728832700880,30.648784,145.52,145.51,2.0]
[1728832703679,16.4327,145.54,145.51,2.0]
[1728832703884,7.42024208,145.58,145.51,2.0]
[1728832703885,6.8715,145.53,145.51,2.0]
[1728832704190,6.8719,145.52,145.51,2.0]
[1728832704564,16.2961,145.57,145.51,2.0]
[1728832704786,6.871,145.54,145.51,2.0]
[1728832704958,16.2961,145.57,145.51,2.0]
[1728832705164,6.8714,145.53,145.51,2.0]
[1728832705488,6.8706,145.55,145.51,8.8722]
[1728832705661,6.8706,145.55,145.51,2.0]
[1728832706274,6.8706,145.55,145.51,8.8722]
[1728832706473,6.8711,145.54,145.51,2.0]
[1728832706676,23.5453,145.59,145.51,2.0]
[1728832706985,17.1685,145.62,145.51,3.37424134]
[1728832707294,6.8677,145.61,145.56,6.8699]
[1728832708077,6.8675,145.62,145.56,6.8699]
[1728832708402,6.8672,145.62,145.57,8.24317543]
[1728832709299,6.8672,145.62,145.57,6.8695]
[1728832710111,23.776884,145.64,145.55,20.0]
[1728832710286,6.8691,145.58,145.54,33.2379]
[1728832710485,23.776884,145.64,145.54,16.0612]
[1728832710486,6.8696,145.57,145.54,16.0612]
[1728832710888,6.8696,145.57,145.52,13.2829]
[1728832711193,6.8696,145.57,145.53,1.37415098]
[1728832711393,6.8696,145.57,145.52,13.2829]
[1728832711782,16.2961,145.62,145.52,13.2829]
[1728832712287,23.776884,145.61,145.52,13.2829]
[1728832712485,6.8705,145.55,145.52,6.4111]
[1728832712690,23.5484,145.61,145.51,18.0612]
[1728832712897,17.1725,145.59,145.51,18.0612]
[1728832713080,6.8713,145.54,145.51,2.0]
[1728832713393,6.8705,145.55,145.51,2.0]
[1728832713598,6.871,145.54,145.51,2.0]
[1728832714667,23.776884,145.58,145.51,2.0]
[1728832714894,6.8701,145.56,145.52,1.37434321]
[1728832715111,6.8692,145.58,145.54,6.8708]
[1728832715570,6.87,145.56,145.52,6.8718]
[1728832715779,6.3786,145.61,145.51,2.0]
[1728832716098,6.8706,145.55,145.51,2.0]
[1728832717400,6.871,145.54,145.51,2.0]
[1728832720170,6.8719,145.52,145.51,2.0]
[1728832720886,30.648784,145.52,145.51,2.0]
[1728832722693,46.677284,145.49,145.48,0.8308035]
[1728832727293,54.57028231,145.49,145.48,0.8308035]
[1728832728211,54.57028231,145.49,145.48,3.5e-06]
[1728832728383,6.8733,145.49,145.48,3.5e-06]
[1728832728789,6.1211,145.54,145.48,3.5e-06]
[1728832728790,6.8729,145.5,145.48,3.5e-06]
[1728832730198,6.8733,145.49,145.48,3.5e-06]
[1728832732104,30.650184,145.49,145.48,3.5e-06]
[1728832733896,45.662684,145.49,145.48,3.5e-06]
[1728832736602,53.55568231,145.49,145.48,3.5e-06]
[1728832736804,73.55568231,145.49,145.48,3.5e-06]
[1728832737901,29.77879831,145.49,145.48,3.5e-06]
[1728832738101,34.76629831,145.49,145.48,3.5e-06]
[1728832738521,6.8729,145.5,145.48,3.5e-06]
[1728832738818,22.99709831,145.52,145.48,3.5e-06]
[1728832739004,6.8732,145.5,145.48,3.5e-06]
[1728832739513,14.76629831,145.49,145.48,3.5e-06]
[1728832739718,6.8733,145.49,145.48,3.5e-06]
[1728832740210,15.1041,145.52,145.48,3.5e-06]
[1728832740595,6.8729,145.5,145.48,3.5e-06]
[1728832740995,6.8724,145.51,145.48,3.5e-06]
[1728832741206,15.1041,145.52,145.48,3.5e-06]
[1728832741207,6.8729,145.5,145.48,3.5e-06]
[1728832741386,6.8733,145.49,145.48,3.5e-06]
[1728832742216,50.650184,145.49,145.48,3.5e-06]
[1728832742417,58.54318231,145.49,145.48,3.5e-06]
[1728832744597,64.96358231,145.49,145.48,3.5e-06]
[1728832748120,6.8766,145.42,145.41,2.0]
[1728832748303,30.653484,145.42,145.41,2.0]
[1728832749397,6.8766,145.42,145.41,2.0]
[1728832749601,6.8765,145.43,145.41,1.0]
[1728832749904,6.8766,145.42,145.41,1.0]
[1728832750111,17.1851,145.48,145.41,1.0]
[1728832750313,6.8758,145.44,145.41,1.0]
[1728832750816,8.94960942,145.45,145.41,1.0]
[1728832751196,15.82480942,145.45,145.41,1.0]
[1728832751396,6.8747,145.46,145.41,1.0]
[1728832751618,6.8743,145.47,145.41,1.0]
[1728832751808,8.94960942,145.48,145.41,1.0]
[1728832752008,8.94960942,145.46,145.41,1.0]
[1728832752218,8.94960942,145.5,145.41,36.09267771]
[1728832752517,6.8736,145.49,145.42,6.8765]
[1728832753299,6.8739,145.48,145.41,36.09267771]
[1728832753510,6.8733,145.49,145.41,36.09267771]
[1728832753717,6.8733,145.49,145.42,1.37512344]
[1728832754222,15.82250942,145.5,145.43,6.876]
[1728832754424,8.94960942,145.48,145.41,1.0]
[1728832754799,6.8755,145.45,145.41,1.0]
[1728832755199,6.8746,145.47,145.41,1.0]
[1728832755424,6.8748,145.46,145.41,1.0]
[1728832755722,15.82440942,145.46,145.41,1.0]
[1728832755928,6.8754,145.45,145.41,1.0]
[1728832756418,8.94960942,145.46,145.41,1.0]
[1728832756627,6.8756,145.44,145.41,1.0]
[1728832757631,8.94960942,145.46,145.41,1.0]
[1728832757632,6.8761,145.43,145.41,1.0]
[1728832757930,43.776884,145.45,145.41,1.0]
[1728832757931,6.8766,145.42,145.41,1.0]
[1728832758606,8.94960942,145.46,145.41,1.0]
[1728832759308,21.8219,145.48,145.41,1.0]
[1728832759309,28.696,145.48,145.41,1.0]
[1728832759617,6.8752,145.45,145.41,1.0]
[1728832760224,8.94960942,145.48,145.41,1.0]
[1728832760429,15.0501,145.52,145.42,15.3503]
[1728832760727,6.8747,145.47,145.41,7.222]
[1728832760906,6.8747,145.46,145.41,1.0]
[1728832761101,6.8738,145.48,145.41,1.0]
[1728832761824,8.45849831,145.51,145.41,1.0]
[1728832761825,20.0,145.5,145.41,1.0]
[1728832762032,6.8743,145.47,145.41,1.0]
[1728832762401,8.45849831,145.49,145.41,1.0]
[1728832762402,6.8753,145.45,145.41,1.0]
[1728832763004,8.45849831,145.49,145.41,1.0]
[1728832763213,15.0501,145.46,145.41,1.0]
[1728832763612,21.9249,145.46,145.41,1.0]
[1728832764328,15.0501,145.46,145.41,1.0]
[1728832764517,23.776884,145.45,145.41,1.0]
[1728832764721,6.8761,145.43,145.41,1.0]
[1728832765332,6.8766,145.42,145.41,1.0]
[1728832765629,26.8762,145.43,145.41,1.0]
[1728832766429,20.0,145.43,145.41,1.0]
[1728832766732,6.8766,145.42,145.41,1.0]
[1728832766913,26.8762,145.43,145.41,1.0]
[1728832767624,20.0,145.43,145.41,1.0]
[1728832767824,30.653484,145.42,145.41,1.0]
[1728832768214,39.11198231,145.42,145.41,1.0]
[1728832769033,30.653484,145.42,145.41,1.0]
[1728832769251,6.8766,145.42,145.41,1.0]
[1728832769533,23.50859831,145.46,145.41,1.0]
[1728832770037,30.38359831,145.46,145.41,1.0]
[1728832771218,23.776884,145.45,145.41,1.0]
[1728832771406,15.33399831,145.45,145.41,1.0]
[1728832771605,8.45849831,145.45,145.41,1.0]
[1728832772427,15.33399831,145.45,145.41,1.0]
[1728832772666,30.652484,145.44,145.41,1.0]
[1728832773014,23.776884,145.44,145.41,1.0]
[1728832773214,6.8764,145.43,145.41,1.0]
[1728832775230,32.23538231,145.44,145.41,1.0]
[1728832775437,30.653484,145.42,145.41,1.0]
[1728832775637,23.776884,145.42,145.41,1.0]
[1728832776012,30.653484,145.42,145.41,1.0]
[1728832776434,50.653484,145.42,145.41,1.0]
[1728832777836,50.653484,145.42,145.37,2.0]
[1728832777837,6.8785,145.38,145.37,2.0]
[1728832778026,23.776884,145.38,145.37,2.0]
[1728832778421,39.52554898,145.38,145.37,2.0]
[1728832779048,59.52554898,145.38,145.37,2.0]
[1728832779247,59.52554898,145.38,145.34,0.8308035]
[1728832779248,20.0,145.37,145.34,0.8308035]
[1728832779531,26.8799,145.35,145.34,0.8308035]
[1728832779754,36.16356049,145.35,145.34,0.8308035]
[1728832780826,16.16356049,145.35,145.34,0.8308035]
[1728832781664,39.94044449,145.35,145.34,0.8308035]
[1728832781834,39.7518,145.42,145.34,0.8308035]
[1728832782359,6.8784,145.39,145.34,0.8308035]
[1728832782653,8.41699382,145.41,145.34,0.8308035]
[1728832783232,15.29409382,145.41,145.34,0.8308035]
[1728832783434,8.41699382,145.41,145.34,0.8308035]
[1728832785264,8.41699382,145.41,145.34,7.7111035]
[1728832785646,8.41699382,145.41,145.34,0.8308035]
[1728832785840,6.8777,145.4,145.34,0.8308035]
[1728832786158,8.41699382,145.4,145.34,0.8308035]
[1728832786339,15.29469382,145.4,145.34,0.8308035]
[1728832787746,22.5601,145.46,145.34,7.7111035]
[1728832787936,8.41699382,145.45,145.34,7.7111035]
[1728832788137,15.29259382,145.45,145.34,7.7111035]
[1728832788362,8.41699382,145.44,145.34,7.7111035]
[1728832788552,6.8763,145.43,145.34,0.8308035]
[1728832788864,15.29329382,145.43,145.34,0.8308035]
[1728832789452,22.5601,145.46,145.34,0.8308035]
[1728832789453,39.07047782,145.42,145.34,0.8308035]
[1728832789972,8.41699382,145.42,145.34,0.8308035]
[1728832790438,15.29369382,145.42,145.34,0.8308035]
[1728832791263,6.8772,145.41,145.34,0.8308035]
[1728832792440,6.8781,145.39,145.34,0.8308035]
[1728832792644,30.655384,145.38,145.34,0.8308035]
[1728832793445,37.22669382,145.39,145.34,0.8308035]
[1728832793645,15.6369,145.43,145.34,0.8308035]
[1728832793850,8.41699382,145.41,145.34,0.8308035]
[1728832794055,15.29409382,145.41,145.34,0.8308035]
[1728832797362,6.8776,145.4,145.34,0.8308035]
[1728832797571,8.41699382,145.39,145.34,0.8308035]
[1728832804783,6.8771,145.41,145.34,0.8308035]
[1728832805072,8.41699382,145.4,145.34,0.8308035]
[1728832805771,15.29459382,145.4,145.34,0.8308035]
[1728832807476,6.8781,145.39,145.34,0.8308035]
[1728832807657,8.41699382,145.38,145.34,0.8308035]
[1728832808181,6.879,145.37,145.34,0.8308035]
[1728832808477,15.29649382,145.36,145.34,0.8308035]
[1728832809758,8.41699382,145.36,145.34,0.8308035]
[1728832809958,15.29649382,145.36,145.34,0.8308035]
[1728832810155,30.656784,145.35,145.34,0.8308035]
[1728832810389,39.07377782,145.35,145.34,0.8308035]
[1728832810677,59.07377782,145.35,145.34,0.8308035]
[1728832811053,6.8808,145.33,145.32,2.0]
[1728832811255,50.657684,145.33,145.32,2.0]
[1728832811465,59.07467782,145.33,145.32,2.0]
[1728832811887,35.29779382,145.33,145.32,2.0]
[1728832812255,8.41699382,145.33,145.32,2.0]
[1728832812691,35.29679382,145.36,145.32,2.0]
[1728832812994,22.2307,145.37,145.32,2.0]
[1728832813170,30.64769382,145.37,145.32,2.0]
[1728832813358,23.76839382,145.37,145.32,2.0]
[1728832813555,8.41699382,145.37,145.32,2.0]
[1728832813869,8.41699382,145.4,145.32,2.0]
[1728832814281,8.41699382,145.4,145.32,10.25733216]
[1728832814487,8.41699382,145.4,145.32,8.8813]
[1728832815369,8.41699382,145.4,145.32,2.0]
[1728832815980,15.29459382,145.4,145.32,2.0]
[1728832816283,8.41699382,145.4,145.34,16.0677]
[1728832816464,15.8263,145.45,145.36,6.8794]
[1728832816671,24.24329382,145.45,145.37,6.8789]
[1728832816881,6.5167,145.46,145.38,6.8784]
[1728832816882,8.41699382,145.44,145.38,6.8784]
[1728832817179,8.41699382,145.44,145.37,30.655784]
[1728832817391,8.41699382,145.44,145.37,23.776884]
[1728832817597,8.41699382,145.44,145.39,30.654784]
[1728832817953,8.41699382,145.44,145.37,17.1964]
[1728832818174,8.41699382,145.44,145.38,23.776884]
[1728832818381,8.41699382,145.44,145.37,24.0749]
[1728832818880,8.41699382,145.44,145.38,30.655184]
[1728832819085,8.41699382,145.44,145.39,6.8779]
[1728832819584,8.41699382,145.48,145.4,6.8774]
[1728832819887,8.41699382,145.48,145.39,6.878]
[1728832820066,8.41699382,145.48,145.4,23.776884]
[1728832820269,17.85148915,145.53,145.43,6.876]
[1728832820460,16.6652,145.53,145.44,6.8752]
[1728832820769,13.14965034,145.58,145.48,23.776884]
[1728832820971,13.14965034,145.58,145.48,25.15140107]
[1728832820972,14.47719382,145.58,145.48,25.15140107]
[1728832821163,12.9278,145.62,145.49,6.8733]
[1728832821370,8.41699382,145.57,145.5,23.776884]
[1728832821558,8.41699382,145.57,145.51,1.37434204]
[1728832821757,6.0602,145.62,145.51,1.37434204]
[1728832821758,6.0602,145.62,145.52,6.8714]
[1728832821957,14.47719382,145.62,145.52,8.24559133]
[1728832822157,8.41699382,145.61,145.51,35.08184054]
[1728832822383,8.41699382,145.61,145.52,1.37415195]
[1728832823387,8.27555391,145.67,145.54,28.66234054]
[1728832823388,23.91108943,145.67,145.54,28.66234054]
[1728832823562,8.41699382,145.63,145.54,30.03623677]
[1728832823880,8.41699382,145.63,145.53,40.955184]
[1728832824083,8.41699382,145.63,145.52,23.776884]
[1728832824271,15.28369382,145.63,145.52,23.776884]
[1728832824462,15.28369382,145.63,145.51,6.4195]
[1728832824463,6.8673,145.62,145.51,6.4195]
[1728832824659,8.41699382,145.61,145.51,6.4195]
[1728832825878,6.8686,145.59,145.47,29.3614]
[1728832826097,8.41699382,145.58,145.47,29.3614]
[1728832827168,8.41699382,145.58,145.49,6.8731]
[1728832827385,8.41699382,145.58,145.5,8.2469415]
[1728832827702,6.8671,145.63,145.5,6.8726]
[1728832827879,8.41699382,145.62,145.5,6.8726]
[1728832828074,15.28419382,145.62,145.5,6.8726]
[1728832828473,6.8683,145.6,145.49,1.37425728]
[1728832828676,6.8683,145.6,145.47,29.3612]
[1728832828677,6.8692,145.58,145.47,22.4872]
[1728832828986,8.41699382,145.57,145.47,6.4195]
[1728832829162,8.41699382,145.57,145.48,1.37464546]
[1728832829368,8.41699382,145.57,145.47,6.4195]
[1728832830489,8.41699382,145.57,145.48,1.37462083]
[1728832832193,15.28649382,145.57,145.47,6.4195]
[1728832832701,15.28649382,145.57,145.44,17.1881]
[1728832832702,6.8705,145.55,145.44,17.1881]
[1728832832988,8.41699382,145.54,145.45,1.37487678]
[1728832833168,8.41699382,145.54,145.44,17.1881]
[1728832833492,8.41699382,145.54,145.44,18.56297562]
[1728832833995,8.41699382,145.54,145.44,25.43857562]
[1728832835477,8.41699382,145.54,145.44,1.37487562]
[1728832835675,6.8715,145.53,145.43,22.6239]
[1728832835880,15.28889382,145.52,145.41,17.1926]
[1728832836091,6.8724,145.51,145.41,17.1926]
[1728832836381,8.41699382,145.5,145.4,13.4337]
[1728832836781,20.0,145.53,145.42,6.8765]
[1728832836975,28.41699382,145.53,145.43,1.37503973]
[1728832837290,8.41699382,145.53,145.43,8.25093973]
[1728832838382,8.41699382,145.53,145.42,6.8765]
[1728832838681,8.41699382,145.53,145.4,23.7493]
[1728832838682,6.8723,145.52,145.41,23.776884]
[1728832838880,8.41699382,145.51,145.41,30.653884]
[1728832839187,8.41699382,145.51,145.41,25.15203652]
[1728832839570,8.41699382,145.51,145.41,23.776884]
[1728832839768,16.2541,145.5,145.4,6.5562]
[1728832839971,8.41699382,145.49,145.4,6.5562]
[1728832840876,8.41699382,145.49,145.41,23.776884]
[1728832841070,22.7347,145.5,145.41,25.15209217]
[1728832841597,15.28889382,145.52,145.45,23.776884]
[1728832841598,8.41699382,145.52,145.45,23.776884]
[1728832841783,22.7347,145.54,145.45,23.776884]
[1728832842109,8.41699382,145.53,145.44,23.776884]
[1728832844006,8.41699382,145.53,145.44,25.15185796]
[1728832844179,8.41699382,145.53,145.44,23.776884]
[1728832845104,8.41699382,145.53,145.44,25.15185887]
[1728832845399,8.38732382,145.53,145.44,32.02745887]
[1728832845987,8.38732382,145.53,145.45,6.8751]
[1728832846486,20.0,145.53,145.46,1.37484678]
[1728832846683,22.7347,145.54,145.46,8.24944678]
[1728832847089,16.2541,145.54,145.46,8.24944678]
[1728832847386,16.2541,145.54,145.46,6.8746]
[1728832847781,8.41485099,145.56,145.47,25.15165712]
[1728832848095,8.41485099,145.56,145.49,6.8732]
[1728832848604,8.41485099,145.56,145.5,32.02404975]
[1728832848787,6.4806,145.61,145.51,6.8723]
[1728832848979,14.89545099,145.61,145.52,8.24601966]
[1728832849179,8.41485099,145.6,145.5,23.776884]
[1728832849379,8.41485099,145.6,145.51,1.37430954]
[1728832850083,8.41485099,145.6,145.52,23.776884]
[1728832850278,8.41485099,145.6,145.53,1.37411095]
[1728832850482,8.41485099,145.6,145.52,30.648684]
[1728832850679,8.41485099,145.6,145.52,23.776884]
[1728832851008,8.41485099,145.6,145.53,1.37411558]
[1728832852595,6.4806,145.61,145.53,1.37411558]
[1728832852898,6.4806,145.61,145.52,30.648684]
[1728832853082,14.89545099,145.61,145.52,30.648684]
[1728832853998,14.89545099,145.61,145.52,32.02277965]
[1728832854200,8.41485099,145.61,145.54,6.8708]
[1728832854508,16.2541,145.62,145.55,25.15080445]
[1728832856089,8.27323263,145.69,145.55,25.15080445]
[1728832856090,8.04991569,145.69,145.58,6.869]
[1728832856290,8.41485099,145.69,145.59,32.0186306]
[1728832856494,17.3139035,145.7,145.6,6.8681]
[1728832856711,17.3139035,145.7,145.6,1.37339728]
[1728832857012,8.41485099,145.68,145.62,23.776884]
[1728832857183,17.3139035,145.7,145.64,23.776884]
[1728832858104,0.8308035,145.7,145.66,23.776884]
[1728832858704,0.8308035,145.7,145.65,23.776884]
[1728832859010,0.8308035,145.7,145.65,25.14982292]
[1728832859507,0.8308035,145.7,145.67,23.776884]
[1728832860603,0.8308035,145.7,145.66,23.776884]
[1728832861104,0.8308035,145.7,145.65,23.776884]
[1728832861491,0.8308035,145.7,145.67,23.776884]
[1728832861689,0.8308035,145.7,145.64,6.0765]
[1728832861888,0.8308035,145.7,145.65,23.776884]
[1728832862384,0.8308035,145.7,145.61,12.9437]
[1728832862715,0.8308035,145.7,145.61,6.0765]
[1728832863010,8.41485099,145.69,145.61,6.0765]
[1728832863591,8.41485099,145.69,145.62,1.37323811]
[1728832864030,8.41485099,145.69,145.61,6.0765]
[1728832864307,15.27875099,145.69,145.58,6.869]
[1728832864997,15.27875099,145.69,145.59,1.37337814]
[1728832865706,15.27875099,145.69,145.59,23.776884]
[1728832866397,8.41485099,145.69,145.57,23.2498]
[1728832866584,6.5927,145.68,145.57,23.2498]
[1728832866788,8.41485099,145.67,145.57,6.0765]
[1728832866989,6.8653,145.66,145.57,6.0765]
[1728832867313,15.28065099,145.65,145.54,24.0476]
[1728832867792,6.8663,145.64,145.54,17.177]
[1728832868119,15.28115099,145.64,145.54,17.177]
[1728832868302,8.41485099,145.64,145.54,24.0478]
[1728832868810,15.28105099,145.64,145.54,24.0478]
[1728832869020,15.28105099,145.64,145.53,6.0765]
[1728832869021,8.41485099,145.64,145.53,6.0765]
[1728832869210,8.41485099,145.63,145.54,1.37390024]
[1728832869504,8.41485099,145.63,145.53,6.0765]
[1728832869707,15.28165099,145.63,145.53,6.0765]
[1728832869912,15.28165099,145.63,145.52,22.1313]
[1728832870214,8.41485099,145.63,145.53,1.37393786]
[1728832870399,8.41485099,145.63,145.52,15.2596]
[1728832870598,15.28155099,145.63,145.52,22.1313]
[1728832871198,15.28155099,145.63,145.53,23.776884]
[1728832871398,8.41485099,145.63,145.51,17.1808]
[1728832871615,6.4521,145.61,145.5,6.0765]
[1728832871794,6.8686,145.59,145.5,6.0765]
[1728832872888,15.7307,145.58,145.48,39.139]
[1728832873083,22.5999,145.58,145.48,32.2654]
[1728832873318,22.5999,145.58,145.48,39.1391]
[1728832873493,15.7307,145.58,145.48,39.1391]
[1728832873692,22.5998,145.58,145.49,1.3743795]
[1728832874397,15.7307,145.58,145.49,1.3743795]
[1728832874713,6.4521,145.61,145.5,45.84384054]
[1728832874887,6.4521,145.61,145.51,1.37403138]
[1728832875093,6.4521,145.61,145.54,23.776884]
[1728832875913,14.86695099,145.61,145.53,23.776884]
[1728832877223,14.86695099,145.61,145.54,1.37406226]
[1728832877796,14.86695099,145.61,145.53,23.776884]
[1728832878007,14.86695099,145.61,145.52,17.1791]
[1728832878208,6.8686,145.59,145.49,17.1828]
[1728832878395,15.28345099,145.59,145.49,17.1828]
[1728832878594,15.28345099,145.59,145.5,1.37438462]
[1728832879408,8.41485099,145.59,145.49,18.55718538]
[1728832879618,6.869,145.58,145.49,18.55718538]
[1728832879920,6.8696,145.57,145.48,15.0814]
[1728832880237,15.28385099,145.58,145.49,1.37448162]
[1728832880911,15.28385099,145.58,145.49,23.776884]
[1728832881523,15.28385099,145.58,145.49,25.15133051]
[1728832882617,6.87,145.56,145.47,23.776884]
[1728832882923,16.2175,145.55,145.45,15.2344]
[1728832883145,16.2175,145.55,145.43,17.19]
[1728832883146,13.1164,145.54,145.43,24.066]
[1728832883304,8.41485099,145.53,145.43,24.066]
[1728832884031,8.41485099,145.53,145.44,6.8755]
[1728832884233,8.41485099,145.53,145.45,1.37474533]
[1728832884525,6.2454,145.54,145.46,23.776884]
[1728832884739,6.2454,145.54,145.47,1.37463839]
[1728832884941,6.2454,145.54,145.47,8.24883839]
[1728832885243,16.2175,145.55,145.47,8.24883839]
[1728832885244,16.2175,145.55,145.48,23.776884]
[1728832885411,16.2175,145.55,145.49,6.8729]
[1728832885607,20.0,145.57,145.49,8.2474243]
[1728832885810,28.41485099,145.57,145.48,30.650484]
[1728832886007,8.41485099,145.56,145.48,23.776884]
[1728832886704,6.8712,145.54,145.44,17.1885]
[1728832886911,8.41485099,145.53,145.42,6.4897]
[1728832887121,8.41485099,145.53,145.43,8.25087244]
[1728832887725,15.28635099,145.53,145.43,8.25087244]
[1728832888123,15.28635099,145.53,145.43,1.37487244]
[1728832888321,6.8728,145.5,145.41,32.4264]
[1728832888531,8.41485099,145.49,145.4,6.8774]
[1728832888827,8.41485099,145.49,145.41,1.37513902]
[1728832889313,6.2454,145.51,145.44,6.8756]
[1728832889519,6.2454,145.51,145.45,8.25006151]
[1728832889718,6.2454,145.51,145.44,6.8756]
[1728832890033,14.66025099,145.51,145.43,30.652884]
[1728832890438,14.66025099,145.51,145.43,23.776884]
[1728832890738,6.8733,145.49,145.39,17.1944]
[1728832891033,8.41485099,145.48,145.39,17.1944]
[1728832891214,8.41485099,145.48,145.4,1.37528849]
[1728832892449,6.8729,145.5,145.4,8.25268849]
[1728832893446,6.2454,145.51,145.41,40.968984]
[1728832893751,6.2454,145.51,145.42,8.2515489]
[1728832893946,6.2454,145.51,145.43,17.1898]
[1728832894251,6.2454,145.51,145.44,1.37492979]
[1728832894425,6.2454,145.51,145.43,17.1898]
[1728832894620,14.66025099,145.51,145.43,17.1898]
[1728832895344,14.66025099,145.51,145.43,25.44079093]
[1728832896656,8.41485099,145.5,145.43,17.1898]
[1728832896827,8.41485099,145.5,145.42,6.8766]
[1728832897550,8.41485099,145.5,145.41,30.653784]
[1728832898050,8.41485099,145.5,145.42,6.8766]
[1728832898456,6.2454,145.51,145.44,6.8755]
[1728832898750,6.2454,145.51,145.45,8.24955649]
[1728832898945,6.2454,145.51,145.45,1.37485649]
[1728832899736,6.2454,145.51,145.44,24.064]
[1728832899934,6.2454,145.51,145.45,1.37486766]
[1728832901051,16.2175,145.54,145.45,8.24966766]
[1728832901353,16.2175,145.54,145.46,17.1863]
[1728832901561,8.41485099,145.53,145.44,30.652484]
[1728832901935,8.41485099,145.53,145.45,8.24982626]
[1728832902242,6.8729,145.5,145.41,43.776884]
[1728832902440,8.41485099,145.49,145.4,24.071]
[1728832903058,8.41485099,145.49,145.41,6.877]
[1728832903353,8.41485099,145.49,145.41,8.25217102]
[1728832903549,8.41485099,145.49,145.41,1.37517102]
[1728832903723,16.1078,145.47,145.37,17.1967]
[1728832903924,24.52265099,145.47,145.38,28.6021]
[1728832904334,24.52265099,145.47,145.39,6.8778]
[1728832904647,8.41485099,145.46,145.38,28.6025]
[1728832904957,8.41485099,145.46,145.39,1.37530549]
[1728832905261,8.41485099,145.46,145.38,28.6025]
[1728832905746,8.41485099,145.46,145.39,1.37538729]
[1728832905949,16.1078,145.47,145.39,8.25318729]
[1728832906156,8.41485099,145.46,145.39,6.8778]
[1728832906871,8.41485099,145.46,145.41,6.877]
[1728832907165,16.1078,145.47,145.39,17.1941]
[1728832907362,16.1078,145.47,145.39,24.072]
[1728832907934,16.1078,145.47,145.39,23.776884]
[1728832908135,24.52265099,145.47,145.39,30.654784]
[1728832908340,24.52265099,145.47,145.41,6.877]
[1728832908665,16.1078,145.47,145.41,6.877]
[1728832909741,16.1078,145.47,145.42,1.37509836]
[1728832910131,24.52265099,145.51,145.42,18.56599836]
[1728832910339,24.52265099,145.51,145.44,6.8753]
[1728832910538,24.52265099,145.51,145.45,1.37493703]
[1728832910841,24.52265099,145.51,145.44,6.8753]
[1728832912562,8.41485099,145.5,145.42,24.0674]
[1728832912777,8.41485099,145.5,145.43,8.25102979]
[1728832913259,8.41485099,145.5,145.43,6.876]
[1728832913860,8.41485099,145.5,145.44,18.56346589]
[1728832914166,16.1078,145.51,145.46,6.8746]
[1728832914461,8.41485099,145.54,145.46,6.8746]
[1728832915051,8.41485099,145.54,145.45,6.8751]